[Event "ETCC Women 2013"]
[Site "Warsaw"]
[Date "2013.11.14"]
[Round "6"]
[White "Nevioselaya, Maria"]
[Black "Purgar, Ivona"]
[Result "1/2-1/2"]
[ECO "B46"]
[WhiteElo "2074"]
[BlackElo "2136"]
[PlyCount "165"]
[EventDate "2013.??.??"]
[EventCountry "POL"]
[WhiteTeam "Belarus"]
[BlackTeam "Croatia"]
[WhiteTeamCountry "BLR"]
[BlackTeamCountry "CRO"]
[TimeControl "40/5400+30:1800+30"]

1. e4 {[%emt 0:00:00]} c5 {[%emt 0:00:00]} 2. Nf3 {[%emt 0:00:00]} e6 {[%emt 0:
00:00]} 3. d4 {[%emt 0:00:00]} cxd4 {[%emt 0:00:04]} 4. Nxd4 {[%emt 0:00:00]}
Nc6 {[%emt 0:00:31]} 5. Nc3 {[%emt 0:00:15]} a6 {[%emt 0:00:30]} 6. f4 {[%emt
0:09:27]} Qb6 {[%emt 0:11:29]} 7. Nxc6 {[%emt 0:02:12]} bxc6 {[%emt 0:03:46]}
8. Bd3 {[%emt 0:01:02]} d5 {[%emt 0:06:38]} 9. Qf3 {[%emt 0:24:55]} Bb7 {[%emt
0:27:46]} 10. f5 {[%emt 0:11:54]} e5 {[%emt 0:12:33]} 11. Qg3 {[%emt 0:04:54]}
O-O-O {[%emt 0:03:58]} 12. Bd2 {[%emt 0:12:19]} Nf6 {[%emt 0:00:47]} 13. O-O-O
{[%emt 0:02:58]} c5 {[%emt 0:11:46]} 14. exd5 {[%emt 0:05:12]} Nxd5 {[%emt 0:
04:34]} 15. Nxd5 {[%emt 0:00:04]} Bxd5 {[%emt 0:01:10]} 16. Qxe5 {[%emt 0:01:
37]} Bxa2 {[%emt 0:02:19]} 17. Bf4 {[%emt 0:07:03]} Bd6 {[%emt 0:06:53]} 18.
Bxa6+ {[%emt 0:00:09]} Qxa6 {[%emt 0:00:35]} 19. Rxd6 {[%emt 0:00:09]} Rxd6 {
[%emt 0:02:05]} 20. Qxd6 {[%emt 0:00:04]} Qxd6 {[%emt 0:00:04]} 21. Bxd6 {
[%emt 0:00:05]} c4 {[%emt 0:02:16]} 22. Re1 {[%emt 0:00:42]} Kd7 {[%emt 0:00:
29]} 23. Bb4 {[%emt 0:00:56]} Re8 {[%emt 0:00:20]} 24. Rd1+ {[%emt 0:03:11]}
Kc7 {[%emt 0:00:26]} 25. Ba5+ {[%emt 0:00:30]} Kc6 {[%emt 0:00:16]} 26. g4 {
[%emt 0:11:01]} Re4 {[%emt 0:00:43]} 27. Rg1 {[%emt 0:00:27]} f6 {[%emt 0:00:
46]} 28. Rg3 {[%emt 0:00:47]} Rf4 {[%emt 0:00:22]} 29. Be1 {[%emt 0:01:07]} Re4
{[%emt 0:00:40]} 30. Kd2 {[%emt 0:00:37]} Bb1 {[%emt 0:00:13]} 31. Rg1 {[%emt
0:00:25]} Ba2 {[%emt 0:00:38]} 32. Bf2 {[%emt 0:00:38]} c3+ {[%emt 0:00:29]}
33. Kxc3 {[%emt 0:00:11]} Bd5 {[%emt 0:00:27]} 34. Kd3 {[%emt 0:00:47]} Rf4 {
[%emt 0:00:32]} 35. Be3 {[%emt 0:00:13]} Bc4+ {[%emt 0:00:47]} 36. Kd2 {[%emt
0:00:22]} Rf3 {[%emt 0:00:18]} 37. b3 {[%emt 0:00:26]} Bd5 {[%emt 0:00:16]} 38.
c4 {[%emt 0:00:17]} Be4 {[%emt 0:00:08]} 39. b4 {[%emt 0:01:28]} Rh3 {[%emt 0:
00:16]} 40. b5+ {[%emt 0:00:00]} Kb7 {[%emt 0:00:00]} 41. c5 {[%emt 0:10:39]}
Rxh2+ {[%emt 0:03:19]} 42. Kc3 {[%emt 0:00:04]} Ra2 {[%emt 0:06:44]} 43. c6+ {
[%emt 0:03:55]} Kc7 {[%emt 0:03:10]} 44. Bc5 {[%emt 0:00:41]} Rc2+ {[%emt 0:12:
22]} 45. Kd4 {[%emt 0:00:11]} Bd3 {[%emt 0:01:35]} 46. Kxd3 {[%emt 0:02:30]}
Rxc5 {[%emt 0:00:05]} 47. Rb1 {[%emt 0:00:13]} Kb6 {[%emt 0:00:26]} 48. Rb4 {
[%emt 0:01:40]} h5 {[%emt 0:05:18]} 49. gxh5 {[%emt 0:10:32]} Rxf5 {[%emt 0:00:
08]} 50. Rc4 {[%emt 0:00:09]} Rd5+ {[%emt 0:00:32]} 51. Ke4 {[%emt 0:00:07]}
Rxh5 {[%emt 0:00:47]} 52. Rc1 {[%emt 0:01:44]} Rh8 {[%emt 0:00:55]} 53. Kd5 {
[%emt 0:01:28]} Rh5+ {[%emt 0:02:37]} 54. Kd6 {[%emt 0:00:32]} Rh8 {[%emt 0:00:
16]} 55. Kd7 {[%emt 0:00:28]} g5 {[%emt 0:00:25]} 56. Ke6 {[%emt 0:01:08]} g4 {
[%emt 0:00:33]} 57. c7 {[%emt 0:01:16]} Kb7 {[%emt 0:00:31]} 58. Kd7 {[%emt 0:
01:24]} Rh7+ {[%emt 0:00:07]} 59. Kd6 {[%emt 0:00:07]} Rh8 {[%emt 0:00:06]} 60.
b6 {[%emt 0:01:18]} f5 {[%emt 0:01:08]} 61. Kd7 {[%emt 0:00:36]} Rh7+ {[%emt 0:
00:05]} 62. Kd8 {[%emt 0:00:09]} Rh8+ {[%emt 0:00:07]} 63. Kd7 {[%emt 0:00:03]}
Rh7+ {[%emt 0:00:03]} 64. Kd6 {[%emt 0:00:14]} Rh8 {[%emt 0:00:38]} 65. Kc5 {
[%emt 0:01:27]} Rh6 {[%emt 0:01:37]} 66. Kd5 {[%emt 0:00:28]} Rh8 {[%emt 0:00:
11]} 67. Kc5 {[%emt 0:00:46]} Rh6 {[%emt 0:00:07]} 68. Kd4 {[%emt 0:00:11]} Rh8
{[%emt 0:00:20]} 69. Rc5 {[%emt 0:00:59]} g3 {[%emt 0:00:32]} 70. Ke3 {[%emt 0:
00:15]} f4+ {[%emt 0:01:01]} 71. Kf3 {[%emt 0:00:05]} Rg8 {[%emt 0:00:47]} 72.
Rd5 {[%emt 0:01:09]} Kc8 {[%emt 0:00:32]} 73. Ra5 {[%emt 0:00:46]} Kb7 {[%emt
0:00:08]} 74. Rd5 {[%emt 0:00:11]} Kc8 {[%emt 0:00:05]} 75. Rd2 {[%emt 0:00:26]
} Rf8 {[%emt 0:00:29]} 76. Rd1 {[%emt 0:00:22]} Rg8 {[%emt 0:00:20]} 77. Rd2 {
[%emt 0:00:39]} Rf8 {[%emt 0:00:07]} 78. Kg2 {[%emt 0:00:21]} Rh8 {[%emt 0:01:
09]} 79. Kf3 {[%emt 0:00:33]} Rf8 {[%emt 0:00:05]} 80. Kg2 {[%emt 0:00:48]} Rh8
{[%emt 0:00:17]} 81. Kf3 {[%emt 0:00:03]} Rf8 {[%emt 0:00:04]} 82. Kg2 {[%emt
0:00:10]} Rh8 {[%emt 0:00:05]} 83. Kf3 {[%emt 0:00:03]} 1/2-1/2

[Event "ETCC Women 2013"]
[Site "Warsaw"]
[Date "2013.11.14"]
[Round "6"]
[White "Newrkla, Katharina"]
[Black "Kaps, Darja"]
[Result "0-1"]
[ECO "B48"]
[WhiteElo "2173"]
[BlackElo "2221"]
[PlyCount "102"]
[EventDate "2013.??.??"]
[EventCountry "POL"]
[WhiteTeam "Austria"]
[BlackTeam "Slovenia"]
[WhiteTeamCountry "AUT"]
[BlackTeamCountry "SLO"]
[TimeControl "40/5400+30:1800+30"]

1. e4 {[%emt 0:00:00]} c5 {[%emt 0:00:00]} 2. Nf3 {[%emt 0:00:00]} Nc6 {[%emt
0:00:00]} 3. d4 {[%emt 0:00:00]} cxd4 {[%emt 0:00:07]} 4. Nxd4 {[%emt 0:00:00]}
e6 {[%emt 0:00:37]} 5. Nc3 {[%emt 0:00:12]} Qc7 {[%emt 0:01:05]} 6. Be3 {[%emt
0:00:20]} a6 {[%emt 0:00:23]} 7. Qd2 {[%emt 0:00:11]} Nf6 {[%emt 0:01:19]} 8.
O-O-O {[%emt 0:01:02]} Be7 {[%emt 0:04:13]} 9. f3 {[%emt 0:00:32]} h5 {[%emt 0:
00:07]} 10. Qf2 {[%emt 0:00:43]} h4 {[%emt 0:03:21]} 11. Kb1 {[%emt 0:03:36]}
d6 {[%emt 0:00:09]} 12. Bd3 {[%emt 0:07:36]} Bd7 {[%emt 0:11:23]} 13. g4 {
[%emt 0:05:55]} Ne5 {[%emt 0:43:37]} 14. g5 {[%emt 0:06:50]} Nh5 {[%emt 0:00:
12]} 15. Rhg1 {[%emt 0:05:58]} Rc8 {[%emt 0:01:53]} 16. f4 {[%emt 0:04:28]} Nc4
{[%emt 0:01:21]} 17. Bxc4 {[%emt 0:13:23]} Qxc4 {[%emt 0:00:05]} 18. f5 {[%emt
0:02:11]} b5 {[%emt 0:06:45]} 19. g6 {[%emt 0:18:25]} fxg6 {[%emt 0:10:24]} 20.
Rxg6 {[%emt 0:04:27]} e5 {[%emt 0:02:59]} 21. Ne6 {[%emt 0:04:03]} b4 {[%emt 0:
08:20]} 22. Nd5 {[%emt 0:00:27]} Qxe4 {[%emt 0:00:19]} 23. Nxe7 {[%emt 0:12:24]
} Kxe7 {[%emt 0:00:36]} 24. Bg5+ {[%emt 0:02:24]} Ke8 {[%emt 0:00:26]} 25. Rxd6
{[%emt 0:02:44]} Bb5 {[%emt 0:01:45]} 26. Nc5 {[%emt 0:03:22]} Qh1+ {[%emt 0:
00:30]} 27. Bc1 {[%emt 0:00:05]} Nf6 {[%emt 0:00:37]} 28. Rg1 {[%emt 0:00:00]}
Qa8 {[%emt 0:00:30]} 29. Re6+ {[%emt 0:00:13]} Kf8 {[%emt 0:00:18]} 30. Rxe5 {
[%emt 0:00:38]} Bc4 {[%emt 0:00:25]} 31. b3 {[%emt 0:00:47]} Bf7 {[%emt 0:00:
21]} 32. Qd4 {[%emt 0:00:41]} Qc6 {[%emt 0:00:41]} 33. Qxb4 {[%emt 0:01:34]}
Kg8 {[%emt 0:00:04]} 34. c4 {[%emt 0:00:43]} Qf3 {[%emt 0:00:46]} 35. Ne6 {
[%emt 0:00:43]} Bxe6 {[%emt 0:00:40]} 36. fxe6 {[%emt 0:00:27]} Qd3+ {[%emt 0:
00:09]} 37. Kb2 {[%emt 0:00:18]} Qd4+ {[%emt 0:00:08]} 38. Qc3 {[%emt 0:00:16]}
Qxg1 {[%emt 0:00:23]} 39. Rg5 {[%emt 0:00:10]} Qf2+ {[%emt 0:00:48]} 40. Ka3 {
[%emt 0:01:13]} Rh5 {[%emt 0:00:00]} 41. Be3 {[%emt 0:01:09]} Qf3 {[%emt 0:03:
21]} 42. Rxg7+ {[%emt 0:01:40]} Kxg7 {[%emt 0:07:08]} 43. Bh6+ {[%emt 0:00:06]}
Rxh6 {[%emt 0:00:05]} 44. Qxf3 {[%emt 0:00:04]} Re8 {[%emt 0:02:26]} 45. Qb7+ {
[%emt 0:07:34]} Kg6 {[%emt 0:00:06]} 46. Qxa6 {[%emt 0:03:14]} Rh5 {[%emt 0:01:
02]} 47. Qd6 {[%emt 0:03:15]} Rf5 {[%emt 0:05:37]} 48. c5 {[%emt 0:04:53]} Ra8+
{[%emt 0:04:28]} 49. Kb4 {[%emt 0:01:15]} Ne4 {[%emt 0:02:11]} 50. Qc7 {[%emt
0:06:36]} Nxc5 {[%emt 0:01:34]} 51. Qb6 {[%emt 0:01:58]} Rb8 {[%emt 0:01:28]}
0-1

[Event "ETCC Women 2013"]
[Site "Warsaw"]
[Date "2013.11.14"]
[Round "6"]
[White "Novak, Ksenija"]
[Black "Kopinits, Anna-Christina"]
[Result "0-1"]
[ECO "B10"]
[WhiteElo "2082"]
[BlackElo "2263"]
[PlyCount "68"]
[EventDate "2013.??.??"]
[EventCountry "POL"]
[WhiteTeam "Slovenia"]
[BlackTeam "Austria"]
[WhiteTeamCountry "SLO"]
[BlackTeamCountry "AUT"]
[TimeControl "40/5400+30:1800+30"]

1. c4 {[%emt 0:00:00]} c6 {[%emt 0:00:00]} 2. e4 {[%emt 0:03:28]} d5 {[%emt 0:
00:00]} 3. cxd5 {[%emt 0:00:19]} cxd5 {[%emt 0:00:10]} 4. exd5 {[%emt 0:00:30]}
Nf6 {[%emt 0:00:28]} 5. Nc3 {[%emt 0:01:45]} Nxd5 {[%emt 0:00:47]} 6. d4 {
[%emt 0:00:37]} Nc6 {[%emt 0:02:29]} 7. Nf3 {[%emt 0:03:53]} Bg4 {[%emt 0:02:
02]} 8. Be2 {[%emt 0:06:08]} e6 {[%emt 0:10:22]} 9. O-O {[%emt 0:05:39]} Be7 {
[%emt 0:02:21]} 10. Be3 {[%emt 0:20:55]} Nxe3 {[%emt 0:10:08]} 11. fxe3 {[%emt
0:00:06]} O-O {[%emt 0:00:46]} 12. Rc1 {[%emt 0:18:52]} Qa5 {[%emt 0:11:31]}
13. Nd2 {[%emt 0:04:33]} Bxe2 {[%emt 0:04:43]} 14. Qxe2 {[%emt 0:00:18]} Rac8 {
[%emt 0:18:47]} 15. Nb3 {[%emt 0:04:37]} Qd8 {[%emt 0:04:46]} 16. Rcd1 {[%emt
0:11:50]} Nb4 {[%emt 0:10:31]} 17. Kh1 {[%emt 0:00:52]} Nd5 {[%emt 0:01:43]}
18. Nxd5 {[%emt 0:01:09]} Qxd5 {[%emt 0:03:16]} 19. e4 {[%emt 0:00:22]} Qc4 {
[%emt 0:01:01]} 20. Qf3 {[%emt 0:01:05]} f6 {[%emt 0:01:53]} 21. d5 {[%emt 0:
01:47]} f5 {[%emt 0:04:09]} 22. e5 {[%emt 0:07:45]} exd5 {[%emt 0:00:19]} 23.
Rxd5 {[%emt 0:00:33]} Rcd8 {[%emt 0:01:51]} 24. Rfd1 {[%emt 0:00:45]} Qe4 {
[%emt 0:02:41]} 25. h3 {[%emt 0:02:44]} Rxd5 {[%emt 0:01:58]} 26. Rxd5 {[%emt
0:00:01]} Rd8 {[%emt 0:01:36]} 27. Rxd8+ {[%emt 0:00:36]} Bxd8 {[%emt 0:00:01]}
28. Qc3 {[%emt 0:00:40]} h6 {[%emt 0:01:55]} 29. Nc5 {[%emt 0:00:22]} Qc6 {
[%emt 0:00:53]} 30. Qb3+ {[%emt 0:00:42]} Kh7 {[%emt 0:00:04]} 31. Nxb7 {[%emt
0:00:13]} Bb6 {[%emt 0:00:33]} 32. Qf3 {[%emt 0:00:47]} Qc1+ {[%emt 0:00:32]}
33. Kh2 {[%emt 0:00:03]} Bg1+ {[%emt 0:00:14]} 34. Kg3 {[%emt 0:00:08]} Qg5+ {
[%emt 0:00:12]} 0-1

[Event "ETCC Women 2013"]
[Site "Warsaw"]
[Date "2013.11.14"]
[Round "6"]
[White "Olsarova, Tereza"]
[Black "Cemhan, Kardelen"]
[Result "1-0"]
[ECO "C70"]
[WhiteElo "2248"]
[BlackElo "1993"]
[PlyCount "61"]
[EventDate "2013.??.??"]
[EventCountry "POL"]
[WhiteTeam "Czech Republic"]
[BlackTeam "Turkey"]
[WhiteTeamCountry "CZE"]
[BlackTeamCountry "TUR"]
[TimeControl "40/5400+30:1800+30"]

1. e4 {[%emt 0:00:00]} e5 {[%emt 0:00:00]} 2. Nf3 {[%emt 0:00:00]} Nc6 {[%emt
0:00:00]} 3. Bb5 {[%emt 0:00:00]} a6 {[%emt 0:00:00]} 4. Ba4 {[%emt 0:00:00]}
Nge7 {[%emt 0:00:02]} 5. Bb3 {[%emt 0:01:05]} d5 {[%emt 0:00:21]} 6. Nc3 {
[%emt 0:01:21]} Be6 {[%emt 0:01:14]} 7. Ng5 {[%emt 0:00:09]} Qd7 {[%emt 0:00:
46]} 8. d3 {[%emt 0:01:10]} O-O-O {[%emt 0:01:11]} 9. O-O {[%emt 0:03:03]} h6 {
[%emt 0:05:17]} 10. Nxe6 {[%emt 0:00:18]} fxe6 {[%emt 0:00:13]} 11. Re1 {[%emt
0:06:01]} g5 {[%emt 0:05:05]} 12. Qh5 {[%emt 0:04:34]} Bg7 {[%emt 0:03:31]} 13.
Bd2 {[%emt 0:06:05]} Kb8 {[%emt 0:06:33]} 14. Ba4 {[%emt 0:03:51]} Qe8 {[%emt
0:07:26]} 15. Qxe8 {[%emt 0:01:30]} Rhxe8 {[%emt 0:00:10]} 16. b4 {[%emt 0:00:
36]} Rf8 {[%emt 0:05:17]} 17. b5 {[%emt 0:07:46]} axb5 {[%emt 0:00:33]} 18.
Nxb5 {[%emt 0:00:14]} dxe4 {[%emt 0:04:52]} 19. Rxe4 {[%emt 0:00:52]} Nd5 {
[%emt 0:04:57]} 20. Rb1 {[%emt 0:03:12]} Rf7 {[%emt 0:07:26]} 21. h4 {[%emt 0:
03:46]} gxh4 {[%emt 0:02:25]} 22. Rxh4 {[%emt 0:01:03]} Rdf8 {[%emt 0:06:23]}
23. f3 {[%emt 0:11:32]} Nf4 {[%emt 0:03:05]} 24. Be3 {[%emt 0:05:55]} Rg8 {
[%emt 0:03:59]} 25. Rg4 {[%emt 0:05:15]} Ne7 {[%emt 0:02:27]} 26. Nc3 {[%emt 0:
06:23]} h5 {[%emt 0:03:03]} 27. Rg5 Nf5 {[%emt 0:00:32]} 28. Bc5 {[%emt 0:03:
57]} Nh4 {[%emt 0:04:59]} 29. Bc6 {[%emt 0:00:27]} b6 {[%emt 0:01:55]} 30. Rb3
{[%emt 0:01:48]} Nhxg2 {[%emt 0:04:02]} 31. Ra3 {[%emt 0:01:35]} 1-0

[Event "ETCC Women 2013"]
[Site "Warsaw"]
[Date "2013.11.14"]
[Round "6"]
[White "Ozturk, Kubra"]
[Black "Olsarova, Karolina"]
[Result "1/2-1/2"]
[ECO "D11"]
[WhiteElo "2281"]
[BlackElo "2275"]
[PlyCount "109"]
[EventDate "2013.??.??"]
[EventCountry "POL"]
[WhiteTeam "Turkey"]
[BlackTeam "Czech Republic"]
[WhiteTeamCountry "TUR"]
[BlackTeamCountry "CZE"]
[TimeControl "40/5400+30:1800+30"]

1. d4 {[%emt 0:00:00]} d5 {[%emt 0:00:00]} 2. c4 {[%emt 0:00:00]} c6 {[%emt 0:
00:00]} 3. Nf3 {[%emt 0:00:00]} Nf6 {[%emt 0:00:00]} 4. Qc2 {[%emt 0:00:34]}
dxc4 {[%emt 0:01:31]} 5. Qxc4 {[%emt 0:00:07]} Bf5 {[%emt 0:00:16]} 6. g3 {
[%emt 0:00:08]} e6 {[%emt 0:01:16]} 7. Bg2 {[%emt 0:00:08]} Nbd7 {[%emt 0:00:
56]} 8. O-O {[%emt 0:01:18]} Be7 {[%emt 0:01:35]} 9. e3 {[%emt 0:00:38]} O-O {
[%emt 0:02:07]} 10. Rd1 {[%emt 0:03:02]} Rc8 {[%emt 0:08:01]} 11. Qe2 {[%emt 0:
00:41]} Ne4 {[%emt 0:09:12]} 12. Nc3 {[%emt 0:00:41]} Nxc3 {[%emt 0:04:16]} 13.
bxc3 {[%emt 0:00:05]} Be4 {[%emt 0:00:07]} 14. Ne1 {[%emt 0:02:27]} Bxg2 {
[%emt 0:01:55]} 15. Nxg2 {[%emt 0:00:11]} c5 {[%emt 0:03:08]} 16. e4 {[%emt 0:
02:18]} Nf6 {[%emt 0:05:07]} 17. Bb2 {[%emt 0:04:02]} Qc7 {[%emt 0:05:54]} 18.
e5 {[%emt 0:10:18]} Nd7 {[%emt 0:04:32]} 19. Ne3 {[%emt 0:09:23]} Nb6 {[%emt 0:
08:14]} 20. a4 {[%emt 0:06:09]} cxd4 {[%emt 0:03:16]} 21. cxd4 {[%emt 0:00:23]}
Rfd8 {[%emt 0:00:45]} 22. Qb5 {[%emt 0:18:16]} Qd7 {[%emt 0:17:15]} 23. Rd3 {
[%emt 0:14:54]} h5 {[%emt 0:04:02]} 24. Rb3 {[%emt 0:02:05]} Qxb5 {[%emt 0:02:
35]} 25. Rxb5 {[%emt 0:03:12]} Rc7 {[%emt 0:02:00]} 26. Kg2 {[%emt 0:04:12]}
Rdd7 {[%emt 0:02:28]} 27. a5 {[%emt 0:02:52]} Nc4 {[%emt 0:01:06]} 28. Nxc4 {
[%emt 0:00:57]} Rxc4 {[%emt 0:00:05]} 29. a6 {[%emt 0:04:30]} bxa6 {[%emt 0:08:
39]} 30. Rxa6 {[%emt 0:00:03]} Rcc7 {[%emt 0:01:03]} 31. Rb3 {[%emt 0:04:07]}
Rb7 {[%emt 0:01:01]} 32. Rxb7 {[%emt 0:00:11]} Rxb7 {[%emt 0:00:01]} 33. Bc1 {
[%emt 0:00:23]} Rd7 {[%emt 0:00:49]} 34. Be3 {[%emt 0:01:13]} Bb4 {[%emt 0:01:
52]} 35. Kf3 {[%emt 0:02:38]} Kf8 {[%emt 0:01:07]} 36. h3 {[%emt 0:00:58]} Ke7
{[%emt 0:00:29]} 37. g4 {[%emt 0:00:22]} hxg4+ {[%emt 0:00:27]} 38. hxg4 {
[%emt 0:00:01]} f6 {[%emt 0:00:44]} 39. Ke4 {[%emt 0:00:21]} fxe5 {[%emt 0:00:
40]} 40. dxe5 {[%emt 0:00:00]} Rc7 {[%emt 0:00:00]} 41. Rxa7 {[%emt 0:03:05]}
Rxa7 {[%emt 0:03:33]} 42. Bxa7 {[%emt 0:00:02]} Ke8 {[%emt 0:02:34]} 43. Bd4 {
[%emt 0:02:17]} Ba3 {[%emt 0:00:55]} 44. f3 {[%emt 0:01:15]} Bb4 {[%emt 0:00:
37]} 45. Kd3 {[%emt 0:00:44]} Kd7 {[%emt 0:00:20]} 46. Kc4 {[%emt 0:01:27]} Bd2
{[%emt 0:00:35]} 47. Bc5 {[%emt 0:00:25]} Bf4 {[%emt 0:01:35]} 48. Kd4 {[%emt
0:00:11]} Ke8 {[%emt 0:00:57]} 49. Bd6 {[%emt 0:01:01]} Bc1 {[%emt 0:00:50]}
50. Ke4 {[%emt 0:00:08]} Bd2 {[%emt 0:00:37]} 51. f4 {[%emt 0:00:03]} g6 {
[%emt 0:00:09]} 52. f5 {[%emt 0:00:19]} gxf5+ {[%emt 0:00:21]} 53. gxf5 {[%emt
0:00:02]} exf5+ {[%emt 0:00:50]} 54. Kxf5 {[%emt 0:00:01]} Bc3 {[%emt 0:00:18]}
55. Ke6 {[%emt 0:00:14]} 1/2-1/2

[Event "ETCC Women 2013"]
[Site "Warsaw"]
[Date "2013.11.14"]
[Round "6"]
[White "Paehtz, Elisabeth"]
[Black "Worek, Joanna"]
[Result "0-1"]
[ECO "A06"]
[WhiteElo "2449"]
[BlackElo "2336"]
[PlyCount "94"]
[EventDate "2013.??.??"]
[EventCountry "POL"]
[WhiteTeam "Germany"]
[BlackTeam "Poland"]
[WhiteTeamCountry "GER"]
[BlackTeamCountry "POL"]
[TimeControl "40/5400+30:1800+30"]

1. Nf3 {[%emt 0:00:00]} d5 {[%emt 0:00:00]} 2. c4 {[%emt 0:00:00]} e6 {[%emt 0:
00:06]} 3. b3 {[%emt 0:00:15]} Nf6 {[%emt 0:00:42]} 4. g3 {[%emt 0:00:07]} Be7
{[%emt 0:01:10]} 5. Bg2 {[%emt 0:00:10]} O-O {[%emt 0:01:05]} 6. Bb2 {[%emt 0:
01:01]} c5 {[%emt 0:02:51]} 7. O-O {[%emt 0:00:42]} d4 {[%emt 0:03:07]} 8. e3 {
[%emt 0:00:06]} Nc6 {[%emt 0:00:13]} 9. exd4 {[%emt 0:00:04]} cxd4 {[%emt 0:00:
04]} 10. Re1 {[%emt 0:01:21]} Re8 {[%emt 0:01:25]} 11. d3 {[%emt 0:02:51]} Bf8
{[%emt 0:05:25]} 12. Ne5 {[%emt 0:03:14]} Nxe5 {[%emt 0:13:25]} 13. Rxe5 {
[%emt 0:00:24]} a5 {[%emt 0:00:42]} 14. Na3 {[%emt 0:08:43]} Bd6 {[%emt 0:07:
59]} 15. Re2 {[%emt 0:02:12]} e5 {[%emt 0:02:13]} 16. Nb5 {[%emt 0:00:04]} Bg4
{[%emt 0:00:36]} 17. f3 {[%emt 0:01:59]} Bf5 {[%emt 0:00:07]} 18. Qd2 {[%emt 0:
03:18]} Bb4 {[%emt 0:10:03]} 19. Qg5 {[%emt 0:04:49]} g6 {[%emt 0:10:00]} 20.
Rd1 {[%emt 0:04:07]} Bf8 {[%emt 0:01:10]} 21. a3 {[%emt 0:18:50]} h6 {[%emt 0:
01:32]} 22. Qd2 {[%emt 0:00:30]} Bd7 {[%emt 0:03:11]} 23. a4 {[%emt 0:02:24]}
Kh7 {[%emt 0:09:55]} 24. Bc1 {[%emt 0:01:18]} Ng8 {[%emt 0:02:07]} 25. Rf1 {
[%emt 0:02:49]} Bf5 {[%emt 0:08:55]} 26. f4 {[%emt 0:01:04]} Bb4 {[%emt 0:00:
28]} 27. Qc2 {[%emt 0:00:07]} e4 {[%emt 0:02:17]} 28. Bxe4 {[%emt 0:00:04]}
Bxe4 {[%emt 0:00:15]} 29. Rxe4 {[%emt 0:00:05]} Rxe4 {[%emt 0:00:02]} 30. dxe4
{[%emt 0:00:04]} d3 {[%emt 0:00:06]} 31. Qd1 {[%emt 0:00:30]} d2 {[%emt 0:01:
29]} 32. Bb2 {[%emt 0:00:05]} Qd3 {[%emt 0:00:27]} 33. f5 {[%emt 0:09:47]} Qe3+
{[%emt 0:02:45]} 34. Kg2 {[%emt 0:00:20]} Qxe4+ {[%emt 0:00:04]} 35. Kh3 {
[%emt 0:02:11]} Rd8 {[%emt 0:03:45]} 36. fxg6+ {[%emt 0:00:44]} Qxg6 {[%emt 0:
00:20]} 37. Qf3 {[%emt 0:03:13]} h5 {[%emt 0:06:15]} 38. Nd4 {[%emt 0:03:17]}
Nh6 {[%emt 0:00:19]} 39. Kg2 {[%emt 0:00:18]} Bc5 {[%emt 0:00:45]} 40. Rd1 {
[%emt 0:00:00]} Bxd4 {[%emt 0:00:00]} 41. Rxd2 {[%emt 0:08:31]} Bb6 {[%emt 0:
01:05]} 42. Rxd8 {[%emt 0:03:49]} Bxd8 {[%emt 0:00:10]} 43. Qc3 {[%emt 0:00:07]
} Qe4+ {[%emt 0:01:44]} 44. Kh3 {[%emt 0:00:16]} f6 {[%emt 0:01:27]} 45. Qd2 {
[%emt 0:00:05]} Nf7 {[%emt 0:04:22]} 46. Qd7 {[%emt 0:00:50]} Kg6 {[%emt 0:00:
13]} 47. Bc1 {[%emt 0:00:10]} Qe2 {[%emt 0:01:44]} 0-1

[Event "ETCC Women 2013"]
[Site "Warsaw"]
[Date "2013.11.14"]
[Round "6"]
[White "Pavlidou, Ekaterini"]
[Black "Goossens, Hanne"]
[Result "0-1"]
[ECO "E46"]
[WhiteElo "2199"]
[BlackElo "2069"]
[PlyCount "102"]
[EventDate "2013.??.??"]
[EventCountry "POL"]
[WhiteTeam "Greece"]
[BlackTeam "Belgium"]
[WhiteTeamCountry "GRE"]
[BlackTeamCountry "BEL"]
[TimeControl "40/5400+30:1800+30"]

1. d4 {[%emt 0:00:00]} Nf6 {[%emt 0:00:00]} 2. c4 {[%emt 0:00:03]} e6 {[%emt 0:
00:06]} 3. Nc3 {[%emt 0:01:20]} Bb4 {[%emt 0:00:20]} 4. e3 {[%emt 0:00:39]} O-O
{[%emt 0:00:38]} 5. Nge2 {[%emt 0:01:00]} Re8 {[%emt 0:00:37]} 6. a3 {[%emt 0:
00:47]} Bf8 {[%emt 0:00:14]} 7. Ng3 {[%emt 0:01:16]} d5 {[%emt 0:00:59]} 8. Bd3
{[%emt 0:04:02]} a5 {[%emt 0:06:57]} 9. O-O {[%emt 0:01:16]} Nbd7 {[%emt 0:06:
27]} 10. Re1 {[%emt 0:03:06]} c5 {[%emt 0:19:55]} 11. b3 {[%emt 0:01:39]} b6 {
[%emt 0:02:48]} 12. cxd5 {[%emt 0:07:01]} exd5 {[%emt 0:03:34]} 13. Nb5 {[%emt
0:02:05]} Bb7 {[%emt 0:03:33]} 14. Nf5 {[%emt 0:04:47]} Re6 {[%emt 0:01:57]}
15. Bb2 {[%emt 0:02:33]} g6 {[%emt 0:03:47]} 16. Ng3 {[%emt 0:00:49]} Rc8 {
[%emt 0:01:54]} 17. Rc1 {[%emt 0:03:05]} Nb8 {[%emt 0:12:34]} 18. Rc2 {[%emt 0:
04:29]} Qe8 {[%emt 0:03:26]} 19. Qa1 {[%emt 0:08:16]} Nbd7 {[%emt 0:05:04]} 20.
Rec1 {[%emt 0:01:40]} Qd8 {[%emt 0:04:07]} 21. Ne2 {[%emt 0:04:11]} a4 {[%emt
0:04:35]} 22. Nf4 {[%emt 0:02:29]} axb3 {[%emt 0:02:26]} 23. Nxe6 {[%emt 0:00:
10]} fxe6 {[%emt 0:00:04]} 24. Rd2 {[%emt 0:07:20]} c4 {[%emt 0:00:10]} 25. Bb1
{[%emt 0:00:55]} Ra8 {[%emt 0:00:32]} 26. f3 {[%emt 0:01:58]} Bc6 {[%emt 0:00:
32]} 27. Nc3 {[%emt 0:02:13]} b5 {[%emt 0:00:24]} 28. Re1 {[%emt 0:05:51]} b4 {
[%emt 0:01:42]} 29. Ne2 {[%emt 0:01:38]} bxa3 {[%emt 0:03:37]} 30. Bc3 {[%emt
0:00:28]} a2 {[%emt 0:02:38]} 31. Bxa2 {[%emt 0:00:37]} bxa2 {[%emt 0:00:28]}
32. Rxa2 {[%emt 0:00:22]} Rxa2 {[%emt 0:02:19]} 33. Qxa2 {[%emt 0:00:06]} Qc8 {
[%emt 0:01:53]} 34. Rb1 {[%emt 0:01:52]} Ne8 {[%emt 0:00:53]} 35. Nf4 {[%emt 0:
01:31]} Nc7 {[%emt 0:00:59]} 36. Qa5 {[%emt 0:03:28]} Kf7 {[%emt 0:01:26]} 37.
g3 {[%emt 0:02:21]} Be7 {[%emt 0:01:34]} 38. h4 {[%emt 0:02:00]} Ne8 {[%emt 0:
01:22]} 39. Qa2 {[%emt 0:01:53]} Nd6 {[%emt 0:00:43]} 40. Bb4 {[%emt 0:00:00]}
e5 {[%emt 0:00:00]} 41. dxe5 {[%emt 0:06:28]} Nxe5 {[%emt 0:02:57]} 42. Kf2 {
[%emt 0:10:14]} Qf5 {[%emt 0:08:01]} 43. Bxd6 {[%emt 0:08:18]} Bxd6 {[%emt 0:
00:41]} 44. Rb6 {[%emt 0:02:54]} Bc5 {[%emt 0:03:07]} 45. Rb8 {[%emt 0:03:28]}
d4 {[%emt 0:06:53]} 46. g4 {[%emt 0:00:35]} dxe3+ {[%emt 0:00:59]} 47. Kg3 {
[%emt 0:00:20]} Qd7 {[%emt 0:00:38]} 48. Qa5 {[%emt 0:02:11]} Bxf3 {[%emt 0:04:
17]} 49. Ne6 {[%emt 0:06:17]} Qxe6 {[%emt 0:01:19]} 50. Qc7+ {[%emt 0:00:12]}
Be7 {[%emt 0:00:36]} 51. Qc8 {[%emt 0:00:43]} Qxc8 {[%emt 0:00:51]} 0-1

[Event "ETCC Women 2013"]
[Site "Warsaw"]
[Date "2013.11.14"]
[Round "6"]
[White "Peng, Zhaoqin"]
[Black "Iwanow, Anna"]
[Result "1-0"]
[ECO "D85"]
[WhiteElo "2378"]
[BlackElo "2206"]
[PlyCount "55"]
[EventDate "2013.??.??"]
[EventCountry "POL"]
[WhiteTeam "Netherlands"]
[BlackTeam "Poland"]
[WhiteTeamCountry "NED"]
[BlackTeamCountry "POL"]
[TimeControl "40/5400+30:1800+30"]

1. d4 Nf6 2. c4 g6 3. Nc3 d5 4. cxd5 Nxd5 5. Bd2 Nb6 6. e3 Bg7 7. f4 N8d7 8.
Nf3 c5 9. d5 f5 10. Qb3 O-O 11. Rd1 c4 12. Bxc4 Nc5 13. Qb5 Qd6 14. Be2 Bd7 15.
Qa5 Rfc8 16. O-O h6 17. Ne5 a6 18. Qb4 Be8 19. e4 Kh8 20. exf5 gxf5 21. Be3
Ncd7 22. Qd4 Rc7 23. Rf3 Nc8 24. Rg3 Nxe5 25. Rxg7 Kxg7 26. fxe5 Qg6 27. d6 Bc6
28. g3 1-0